bitfinex-derivatives/quotes_BTCF0:USTF0_20251110
["timestamp","ask_amount","ask_price","bid_price","bid_amount"]
[1762787854578,0.21404203,105250.0,105240.0,0.06220803]
[1762787854984,0.21404203,105250.0,105240.0,0.15725263]
[1762787855183,0.21404203,105250.0,105240.0,0.06220803]
[1762787855790,0.21404203,105250.0,105240.0,0.15725263]
[1762787856383,0.21404203,105250.0,105240.0,0.06220803]
[1762787856577,0.21404203,105250.0,105240.0,0.06320803]
[1762787856792,0.21404203,105250.0,105240.0,0.15825263]
[1762787856976,0.11900643,105250.0,105240.0,0.15825263]
[1762787857181,0.09547069,105250.0,105240.0,0.15825263]
[1762787857382,0.21404193,105250.0,105240.0,0.15825263]
[1762787857986,0.21404193,105250.0,105240.0,0.06320803]
[1762787858580,0.21404193,105250.0,105240.0,0.15825263]
[1762787858581,0.00043519,105250.0,105240.0,0.15825263]
[1762787858777,0.00014246,105250.0,105240.0,0.15825263]
[1762787859190,0.09547069,105250.0,105240.0,0.15825263]
[1762787859591,0.00043519,105250.0,105240.0,0.15825263]
[1762787860887,0.1187137,105250.0,105240.0,0.15825263]
[1762787861094,0.21404193,105250.0,105240.0,0.15825263]
[1762787861284,0.21404193,105250.0,105240.0,0.06320803]
[1762787863194,0.00043519,105250.0,105240.0,0.15825263]
[1762787863495,0.11900643,105250.0,105240.0,0.15825263]
[1762787863899,0.21404193,105250.0,105240.0,0.15825263]
[1762787865595,0.11900643,105250.0,105240.0,0.22522714]
[1762787866094,0.11900643,105250.0,105240.0,0.15825263]
[1762787866295,0.21404193,105250.0,105240.0,0.15825263]
[1762787867087,0.33261317,105250.0,105240.0,0.00619803]
[1762787867392,0.09547069,105250.0,105240.0,0.06320803]
[1762787867596,0.11900643,105250.0,105240.0,0.15825243]
[1762787867793,0.21404183,105250.0,105240.0,0.15825243]
[1762787868591,0.11900643,105250.0,105240.0,0.15825243]
[1762787868996,0.21404183,105250.0,105240.0,0.15725243]
[1762787869298,0.11900643,105250.0,105240.0,0.22222694]
[1762787869894,0.11900643,105250.0,105240.0,0.22322694]
[1762787870090,0.11900643,105250.0,105240.0,0.22522694]
[1762787870293,0.21404183,105250.0,105240.0,0.22522694]
[1762787870602,0.21404183,105250.0,105240.0,0.08582254]
[1762787871009,0.21404183,105250.0,105240.0,0.01884803]
[1762787871298,0.21404183,105250.0,105240.0,0.06301803]
[1762787871493,0.21404183,105250.0,105240.0,0.22503704]
[1762787872096,0.11900643,105250.0,105240.0,0.22503704]
[1762787872803,0.00043519,105250.0,105240.0,0.22503704]
[1762787873097,0.00043519,105250.0,105240.0,0.24280674]
[1762787873501,0.09547059,105250.0,105240.0,0.24280674]
[1762787873799,0.09547059,105250.0,105240.0,0.24080674]
[1762787874099,0.09547059,105250.0,105240.0,0.24280674]
[1762787874600,0.26937792,105250.0,105240.0,0.15922654]
[1762787874789,0.26937792,105250.0,105240.0,0.004]
[1762787874990,0.26937792,105250.0,105240.0,0.05741481]
[1762787875189,0.26937792,105250.0,105240.0,0.05541481]
[1762787875391,0.86937792,105250.0,105240.0,0.05521678]
[1762787875595,0.0950535,105230.0,105220.0,0.06842676]
[1762787875802,0.26925356,105230.0,105220.0,0.00234049]
[1762787876301,0.26925356,105230.0,105220.0,0.01628049]
[1762787877101,0.26925356,105230.0,105220.0,0.01728049]
[1762787878295,0.26925356,105230.0,105220.0,0.15638299]
[1762787878604,0.26925356,105230.0,105220.0,0.06132049]
[1762787879694,0.27025356,105230.0,105220.0,0.06132049]
[1762787879898,0.27025356,105230.0,105220.0,0.06032049]
[1762787880403,0.27025356,105230.0,105220.0,0.15538299]
[1762787880597,0.27025356,105230.0,105220.0,0.01408246]
[1762787880803,0.27025356,105230.0,105220.0,0.03426661]
[1762787881104,0.0950715,105210.0,105200.0,0.0809343]
[1762787881398,0.0950715,105210.0,105180.0,0.01271853]
[1762787881399,0.0950896,105190.0,105180.0,0.22014143]
[1762787881601,0.17420006,105190.0,105180.0,0.23181752]
[1762787881798,0.00029273,105190.0,105180.0,0.23181752]
[1762787881993,0.26928966,105190.0,105180.0,0.12724086]
[1762787882204,0.17420006,105190.0,105180.0,0.22233956]
[1762787882899,0.26928966,105190.0,105180.0,0.12724086]
[1762787883101,0.26928966,105190.0,105180.0,0.05895656]
[1762787883703,0.17420006,105190.0,105180.0,0.15405526]
[1762787884202,0.26928966,105190.0,105180.0,0.15405526]
[1762787884402,0.26928966,105190.0,105180.0,0.01491656]
[1762787884590,0.26928966,105190.0,105180.0,6.853e-05]
[1762787885403,0.17420006,105190.0,105180.0,0.15934526]
[1762787885702,0.00029273,105190.0,105180.0,0.15934526]
[1762787885904,0.00014246,105200.0,105190.0,0.1391296]
[1762787886096,0.17434252,105200.0,105190.0,0.14132763]
[1762787886401,0.26942312,105200.0,105190.0,0.04623803]
[1762787886599,0.17434252,105200.0,105190.0,0.14132763]
[1762787886903,0.26942312,105200.0,105190.0,0.14132763]
[1762787887104,0.26942312,105200.0,105190.0,0.04623803]
[1762787887504,0.26942312,105200.0,105190.0,0.00219803]
[1762787887904,0.0950896,105190.0,105180.0,0.01700853]
[1762787888104,0.26928966,105190.0,105180.0,0.00526656]
[1762787888400,0.26928966,105190.0,105180.0,6.853e-05]
[1762787888807,0.0950987,105180.0,105170.0,0.00014246]
[1762787889001,0.26929876,105180.0,105170.0,0.00014246]
[1762787889496,0.26929876,105180.0,105160.0,0.01271]
[1762787889497,0.0951077,105170.0,105160.0,0.01271]
[1762787889810,0.0951258,105150.0,105140.0,0.05798]
[1762787889997,0.26942216,105150.0,105140.0,0.06017803]
[1762787890502,0.26942216,105150.0,105140.0,0.01613803]
[1762787890807,0.26942216,105150.0,105140.0,0.01394]
[1762787891001,0.0951348,105140.0,105130.0,0.00014246]
[1762787891203,0.26933486,105140.0,105130.0,0.00014246]
[1762787891506,0.26933486,105140.0,105130.0,0.00234049]
[1762787892005,0.26933486,105140.0,105130.0,0.00014246]
[1762787892204,0.26943116,105140.0,105130.0,0.00014246]
[1762787892604,0.09552383,105140.0,105130.0,0.00014246]
[1762787892802,0.26943116,105140.0,105130.0,0.00014246]
[1762787893203,0.26943116,105140.0,105130.0,0.00114246]
[1762787893706,0.26943116,105140.0,105130.0,0.02545049]
[1762787894005,0.17429636,105140.0,105130.0,0.14352439]
[1762787894204,0.00038903,105140.0,105130.0,0.04838049]
[1762787894399,0.17429636,105140.0,105130.0,0.04838049]
[1762787894599,0.26943116,105140.0,105130.0,0.04838049]
[1762787894802,0.17429636,105140.0,105130.0,0.04838049]
[1762787895310,0.26943116,105140.0,105130.0,0.00434049]
[1762787895514,0.09552383,105140.0,105130.0,0.00434049]
[1762787895808,0.26943116,105140.0,105130.0,0.00434049]
[1762787896001,0.26943116,105140.0,105130.0,0.00214246]
[1762787896608,0.26943116,105140.0,105130.0,0.00434049]
[1762787898106,0.26943116,105140.0,105130.0,0.02645049]
[1762787898706,0.26943116,105140.0,105130.0,0.00434049]
[1762787899107,0.26943116,105140.0,105130.0,0.02645049]
[1762787899509,0.26943116,105140.0,105130.0,0.04814049]
[1762787900600,0.17429636,105140.0,105130.0,0.04814049]
[1762787900799,0.26943116,105140.0,105130.0,0.04814049]
[1762787900998,0.00038903,105140.0,105130.0,0.14328429]
[1762787902115,9.63e-05,105140.0,105130.0,0.14328429]
[1762787902401,9.63e-05,105140.0,105130.0,0.38108429]
[1762787902609,9.63e-05,105140.0,105130.0,0.14328429]
[1762787903597,0.26917029,105160.0,105150.0,0.04318]
[1762787903799,0.09555189,105160.0,105150.0,0.14050373]
[1762787904004,0.26945922,105160.0,105150.0,0.04537803]
[1762787904802,0.27145922,105160.0,105150.0,0.04637803]
[1762787905004,0.27145922,105160.0,105150.0,0.00319803]
[1762787905206,0.27145922,105160.0,105150.0,0.001]
[1762787905607,0.0951257,105150.0,105130.0,0.00014246]
[1762787905808,0.26933486,105140.0,105130.0,0.00234049]
[1762787906111,0.00029273,105140.0,105130.0,0.14066429]
[1762787906413,0.09542753,105140.0,105130.0,0.04552049]
[1762787907004,0.26933486,105140.0,105130.0,0.04552049]
[1762787907404,0.26933486,105140.0,105130.0,0.04652049]
[1762787908611,0.00029273,105140.0,105130.0,0.14166429]
[1762787908809,0.17404979,105160.0,105150.0,0.1383057]
[1762787909113,0.17434252,105160.0,105150.0,0.04537803]
[1762787909411,0.26945922,105160.0,105150.0,0.04537803]
[1762787909613,0.09555189,105160.0,105150.0,0.14050373]
[1762787909805,0.26945922,105160.0,105150.0,0.04537803]
[1762787910414,0.26945922,105160.0,105150.0,0.00319803]
[1762787910605,0.26945922,105160.0,105150.0,0.00419803]
[1762787912011,0.26945922,105160.0,105150.0,0.04737803]
[1762787912419,0.26945922,105160.0,105150.0,0.00419803]
[1762787912611,0.26945922,105160.0,105150.0,0.002]
[1762787913517,0.09555189,105160.0,105150.0,0.002]
[1762787913817,0.26945922,105160.0,105150.0,0.002]
[1762787914009,0.86945922,105160.0,105150.0,0.002]
[1762787914410,0.0951348,105140.0,105130.0,0.00014246]
[1762787914604,0.26933486,105140.0,105130.0,0.02383049]
[1762787914810,0.26933486,105140.0,105130.0,0.04552049]
[1762787915113,0.00029273,105140.0,105130.0,0.04552049]
[1762787915318,0.00029273,105140.0,105130.0,0.14066429]
[1762787915519,0.26903853,105150.0,105140.0,0.05599]
[1762787915717,0.09526086,105160.0,105150.0,0.04318]
[1762787915914,0.09526086,105160.0,105150.0,0.04537803]
[1762787915915,0.26916819,105160.0,105150.0,0.04537803]
[1762787916414,0.0951257,105150.0,105140.0,0.01281]
[1762787916717,0.09526496,105160.0,105150.0,0.04318]
[1762787916915,0.09526496,105160.0,105150.0,0.04537803]
[1762787917320,0.26917229,105160.0,105150.0,0.04537803]
[1762787917516,0.26917229,105160.0,105150.0,0.04637803]
[1762787917718,0.09526496,105160.0,105150.0,0.04637803]
[1762787918113,0.26917229,105160.0,105150.0,0.04637803]
[1762787919016,0.26917229,105160.0,105150.0,0.00319803]
[1762787919208,0.26917229,105160.0,105150.0,0.001]
[1762787919414,0.28903418,105160.0,105150.0,0.04637803]
[1762787919716,0.26917229,105160.0,105150.0,0.04737803]
[1762787920214,0.09526496,105160.0,105150.0,0.00419803]
[1762787920413,0.26917229,105160.0,105150.0,0.00419803]
[1762787921012,0.26917229,105160.0,105150.0,0.002]
[1762787921324,0.09526496,105160.0,105150.0,0.00419803]
[1762787921512,0.26917229,105160.0,105150.0,0.002]
[1762787922422,0.0951348,105140.0,105130.0,0.09407942]
[1762787922615,0.26904213,105140.0,105130.0,0.00234049]
[1762787923820,0.26904213,105140.0,105130.0,0.00434049]
[1762787924122,0.26904213,105140.0,105130.0,0.04752049]
[1762787924307,0.26904213,105140.0,105130.0,0.00014246]
[1762787924513,0.0951348,105140.0,105130.0,0.04952049]
[1762787924713,0.26904213,105140.0,105130.0,0.00634049]
[1762787925417,0.26904213,105140.0,105130.0,0.00334049]
[1762787925619,0.26904213,105140.0,105130.0,0.00434049]
[1762787926121,0.28890829,105140.0,105130.0,0.00434049]
[1762787927009,0.28890829,105140.0,105130.0,0.00214246]
[1762787927415,0.28890829,105140.0,105130.0,0.00434049]
[1762787927613,0.28891059,105140.0,105130.0,0.00434049]
[1762787927816,0.28891059,105140.0,105130.0,0.00214246]
[1762787928017,0.28891059,105140.0,105100.0,0.06477984]
[1762787928018,0.0951454,105130.0,105100.0,0.06477984]
[1762787928224,0.26906593,105120.0,105110.0,0.04537803]
[1762787930527,0.24621566,105120.0,105110.0,0.04537803]
[1762787930832,0.07230833,105120.0,105110.0,0.04537803]
[1762787931128,0.24621566,105120.0,105110.0,0.04537803]
[1762787931315,0.24621566,105120.0,105110.0,0.04837803]
[1762787931622,0.24621566,105120.0,105110.0,0.05037803]
[1762787932219,0.24621566,105120.0,105110.0,0.005]
[1762787932622,0.24621566,105120.0,105110.0,0.00719803]
[1762787933917,0.24721566,105120.0,105110.0,0.00419803]
[1762787934520,0.0951619,105110.0,105100.0,0.01411784]
[1762787934714,0.26906923,105110.0,105100.0,0.03787587]
[1762787935019,0.21411874,105110.0,105100.0,0.03787587]
[1762787935816,0.21411874,105110.0,105100.0,0.01631587]
[1762787936016,0.09518,105090.0,105080.0,0.11833164]
[1762787936224,0.21633487,105090.0,105080.0,0.11905581]
[1762787936718,0.12115487,105090.0,105080.0,0.21424491]
[1762787937119,0.12123775,105090.0,105080.0,0.45216491]
[1762787937313,0.12123775,105090.0,105080.0,0.21424491]
[1762787937527,2.46e-06,105100.0,105090.0,0.13919]
[1762787937728,0.0951438,105130.0,105120.0,0.05723]
[1762787937918,0.09734183,105130.0,105120.0,0.03616]
[1762787938118,0.09734183,105130.0,105100.0,0.1083589]
[1762787938119,0.0951619,105110.0,105100.0,0.1083589]
[1762787938422,0.09735993,105110.0,105100.0,0.08801307]
[1762787938622,0.09735993,105110.0,105100.0,0.10908307]
[1762787938823,0.21631677,105110.0,105100.0,0.10908307]
[1762787939522,0.21631677,105110.0,105100.0,0.03688417]
[1762787939838,0.095171,105100.0,105090.0,0.00314246]
[1762787940019,0.21632587,105100.0,105090.0,0.00386663]
[1762787940219,0.21632587,105100.0,105090.0,0.02680663]
[1762787940632,0.21632587,105100.0,105090.0,0.09900553]
[1762787940928,0.12115487,105100.0,105090.0,0.19118553]
[1762787941129,0.00219803,105100.0,105090.0,1.02906553]
[1762787941329,0.00014246,105120.0,105110.0,0.04401]
[1762787941330,0.09530346,105120.0,105110.0,0.04401]
[1762787941530,0.21645833,105120.0,105110.0,0.13989607]
[1762787941726,0.09750149,105120.0,105110.0,0.09588182]
[1762787941931,0.33541517,105120.0,105110.0,0.09588182]
[1762787942129,0.33541517,105120.0,105110.0,0.04473417]
[1762787942335,0.33541517,105120.0,105110.0,0.09588182]
[1762787942835,0.33641517,105120.0,105110.0,0.04473417]
[1762787943028,0.0951619,105110.0,105100.0,0.08730765]
[1762787943232,0.21631677,105110.0,105100.0,0.05795417]
[1762787944938,0.12115487,105110.0,105100.0,0.15312517]
[1762787945124,0.12115487,105110.0,105100.0,0.20427282]
[1762787945325,0.00219803,105110.0,105100.0,0.20427282]
[1762787945522,0.09630046,105120.0,105110.0,0.1391719]
[1762787945523,0.00114246,105120.0,105110.0,0.1391719]
[1762787945733,0.21409764,105140.0,105130.0,0.04401]
[1762787945932,0.21629567,105140.0,105130.0,0.09588148]
[1762787946223,0.00219803,105140.0,105130.0,0.19102528]
[1762787946428,0.21408324,105150.0,105140.0,0.05723]
[1762787946627,0.12115487,105150.0,105140.0,0.20423774]
[1762787946837,0.00014246,105160.0,105150.0,0.1391357]
[1762787947141,0.09525916,105160.0,105150.0,0.11301847]
[1762787947438,0.09745719,105160.0,105150.0,0.11301847]
[1762787947932,0.21641403,105160.0,105150.0,0.11301847]
[1762787948136,0.09745719,105160.0,105150.0,0.20814417]
[1762787948339,0.09745719,105160.0,105150.0,0.11301847]
[1762787948340,0.21641403,105160.0,105150.0,0.11301847]
[1762787948635,0.21641403,105160.0,105150.0,0.09583332]
[1762787949836,0.21641403,105160.0,105150.0,0.04473417]
[1762787950430,0.21641403,105160.0,105150.0,0.04673417]
[1762787950635,0.33537087,105160.0,105150.0,0.04673417]
[1762787950829,0.33537087,105160.0,105150.0,0.00272417]
[1762787951133,0.33537087,105160.0,105150.0,0.02366417]
[1762787951342,0.21641403,105160.0,105150.0,0.04673417]
[1762787951931,0.33537087,105160.0,105150.0,0.00172417]
[1762787952132,0.33537087,105160.0,105150.0,0.04573417]
[1762787952427,0.21641403,105160.0,105150.0,0.04573417]
[1762787952633,0.33537087,105160.0,105150.0,0.04573417]
[1762787953031,0.33637087,105160.0,105150.0,0.04573417]
[1762787953435,0.09845719,105160.0,105150.0,0.04573417]
[1762787953633,0.00334049,105160.0,105150.0,0.14085987]
[1762787953938,0.00114246,105160.0,105150.0,0.09683332]
[1762787954138,0.00114246,105160.0,105150.0,0.14085987]
[1762787954342,0.1200993,105160.0,105150.0,0.19191215]
[1762787954533,0.00214246,105160.0,105150.0,0.42867215]
[1762787954734,0.00114246,105160.0,105150.0,0.37761987]
[1762787954933,0.1200993,105160.0,105150.0,0.13985987]
[1762787955141,0.21741403,105160.0,105150.0,0.09576878]
[1762787955337,0.21641403,105160.0,105150.0,0.09576878]
[1762787955533,0.21641403,105160.0,105150.0,0.09776878]
[1762787955730,0.33537087,105160.0,105150.0,0.09876878]
[1762787955931,0.09745719,105160.0,105150.0,0.04773417]
[1762787956133,0.21641403,105160.0,105150.0,0.04773417]
[1762787956635,0.21641403,105160.0,105150.0,0.14285987]
[1762787956837,0.12129733,105160.0,105150.0,0.14285987]
[1762787957036,0.12129733,105160.0,105150.0,0.19389448]
[1762787957232,0.00234049,105160.0,105150.0,0.19389448]
[1762787957442,0.00014246,105160.0,105150.0,0.42965448]
[1762787957748,0.09525916,105160.0,105150.0,0.38061987]
[1762787958043,0.21641403,105160.0,105150.0,0.19385237]
[1762787958246,0.21641403,105160.0,105150.0,0.09872667]
[1762787958545,0.33537087,105160.0,105150.0,0.09872667]
[1762787958743,0.33537087,105160.0,105150.0,0.04773417]
[1762787959040,0.0354,105140.0,105130.0,0.05113496]
[1762787959339,0.0354,105140.0,105120.0,0.0815043]
[1762787959340,0.1305529,105120.0,105110.0,0.00011747]
[1762787959544,0.37066461,105120.0,105110.0,0.00011747]
[1762787959739,0.13275093,105120.0,105110.0,0.00011747]
[1762787959944,0.25170777,105120.0,105110.0,0.02270747]
[1762787960144,0.37066461,105120.0,105110.0,0.02270747]
[1762787960438,0.37066461,105120.0,105110.0,0.00011747]
[1762787960439,0.37951461,105120.0,105110.0,0.00011747]
[1762787960642,0.130571,105100.0,105090.0,0.0509925]
[1762787960849,0.09518,105090.0,105080.0,0.1096325]
[1762787961037,0.21633487,105090.0,105080.0,0.10977496]
[1762787961444,0.12115487,105090.0,105080.0,0.10977496]
[1762787961642,0.12123875,105090.0,105080.0,0.10977496]
[1762787961836,0.21641875,105090.0,105080.0,0.10977496]
[1762787962044,0.13893875,105090.0,105080.0,0.20496406]
[1762787962240,0.23411875,105090.0,105080.0,0.11377496]
[1762787962640,0.25181875,105090.0,105080.0,0.1477771]
[1762787962847,0.13286191,105090.0,105080.0,0.0967846]
[1762787963342,0.25181875,105090.0,105080.0,0.0967846]
[1762787963841,0.25281875,105090.0,105080.0,0.0657346]
[1762787964344,0.13993875,105090.0,105080.0,0.16262156]
[1762787964545,0.12223875,105090.0,105080.0,0.1966237]
[1762787964741,0.00328191,105090.0,105080.0,0.1966237]
[1762787965137,0.00228191,105090.0,105080.0,0.1906237]
[1762787965335,0.00228191,105090.0,105080.0,0.1926237]
[1762787965535,0.12123875,105090.0,105080.0,0.1926237]
[1762787965733,8.388e-05,105090.0,105080.0,0.20961406]
[1762787965942,0.09530846,105110.0,105100.0,0.05829]
[1762787966143,0.25186333,105110.0,105100.0,0.05829]
[1762787966536,0.130571,105100.0,105090.0,0.12967887]
[1762787966741,0.25172587,105100.0,105090.0,0.22485887]
[1762787967045,0.25172587,105100.0,105090.0,0.12967887]
[1762787967239,0.13276903,105100.0,105090.0,0.22485887]
[1762787967439,0.25172587,105100.0,105090.0,0.22485887]
[1762787967640,0.25172587,105100.0,105090.0,0.03398637]
[1762787967836,0.13058,105090.0,105080.0,0.03412883]
[1762787968143,0.25173487,105090.0,105080.0,0.07030883]
[1762787968646,0.25173487,105090.0,105080.0,0.09241883]
[1762787970138,0.25173487,105090.0,105080.0,0.00014246]
[1762787970335,0.37069171,105090.0,105080.0,0.00314246]
[1762787970542,0.1305982,105070.0,105060.0,0.04757637]
[1762787970841,0.25175307,105070.0,105050.0,0.08497887]
[1762787971047,0.24956404,105060.0,105050.0,0.07868637]
[1762787971239,0.25176207,105060.0,105050.0,0.0447]
[1762787971640,0.25176207,105060.0,105050.0,0.07868637]
[1762787971844,0.12115487,105060.0,105050.0,0.17390267]
[1762787972049,0.12115487,105060.0,105050.0,0.17790267]
[1762787972339,0.21636207,105060.0,105050.0,0.17790267]
[1762787972535,0.23406207,105060.0,105050.0,0.17790267]
[1762787972737,0.25176207,105060.0,105050.0,0.08268637]
[1762787973252,0.25176207,105060.0,105050.0,0.0487]
[1762787973437,0.25176207,105060.0,105050.0,0.0447]
[1762787973756,0.25176207,105060.0,105050.0,0.0467]
[1762787973943,0.25176207,105060.0,105050.0,0.0375392]
[1762787974144,0.15655487,105060.0,105050.0,0.1409163]
[1762787974348,0.21636207,105060.0,105050.0,0.1409163]
[1762787974541,0.25276207,105060.0,105050.0,0.0447]
[1762787975341,0.25176207,105060.0,105050.0,0.0447]
[1762787975545,0.25176207,105060.0,105050.0,0.0467]
[1762787975745,0.25176207,105060.0,105050.0,0.002]
[1762787976247,0.25176207,105060.0,105050.0,0.0467]
[1762787976750,0.13280523,105060.0,105050.0,0.1419163]
[1762787976953,0.00219803,105060.0,105050.0,0.1429163]
[1762787977156,0.00219803,105060.0,105050.0,0.17690267]
[1762787977544,0.0354,105090.0,105080.0,0.153475]
[1762787977848,0.25173487,105090.0,105080.0,0.05829]
[1762787978458,0.1305982,105070.0,105060.0,0.09227637]
[1762787978647,0.25175307,105070.0,105060.0,0.05829]
[1762787978845,0.15655487,105070.0,105060.0,0.1534972]
[1762787979253,0.00219803,105070.0,105060.0,0.1534972]
[1762787979455,0.2142884,105080.0,105070.0,0.1398982]
[1762787979646,0.25188643,105080.0,105070.0,0.0447]
[1762787980053,0.25188643,105080.0,105070.0,0.05548513]
[1762787980451,0.23418643,105080.0,105070.0,0.15068333]
[1762787980658,0.23418643,105080.0,105070.0,0.05548513]
[1762787981256,0.00234049,105080.0,105070.0,0.15068333]
[1762787981449,0.21648643,105080.0,105070.0,0.15168333]
[1762787981650,0.12129733,105080.0,105070.0,0.15168333]
[1762787981852,0.12129733,105080.0,105070.0,0.1408982]
[1762787982053,0.00014246,105080.0,105070.0,0.41380457]
[1762787982355,0.24952784,105100.0,105090.0,0.0447]
[1762787982547,0.25172587,105100.0,105090.0,0.0447]
[1762787983157,0.23402587,105100.0,105090.0,0.1398801]
[1762787983458,0.00219803,105100.0,105090.0,0.17380629]
[1762787983953,0.09736903,105100.0,105090.0,0.17380629]
[1762787984361,0.09736903,105100.0,105090.0,0.22479879]
[1762787984655,0.00319803,105100.0,105090.0,0.17380619]
[1762787984862,0.0951529,105120.0,105110.0,0.0447]
[1762787985049,0.1305619,105110.0,105100.0,0.07013503]
[1762787985252,0.03759803,105110.0,105100.0,0.18741603]
[1762787985463,0.21631677,105110.0,105100.0,0.23834858]
[1762787986360,0.25171677,105110.0,105100.0,0.10922255]
[1762787986560,0.13275993,105110.0,105100.0,0.09229035]
[1762787986757,0.23401677,105110.0,105100.0,0.2403939]
[1762787986950,0.09735993,105110.0,105100.0,0.2403939]
[1762787987150,0.1190993,105120.0,105110.0,0.0951619]
[1762787987353,0.00234049,105120.0,105110.0,0.17388888]
[1762787987558,0.00014246,105120.0,105110.0,0.22482143]
[1762787987857,0.00014246,105120.0,105110.0,0.2081462]
[1762787988260,0.0951382,105140.0,105130.0,0.1398438]
[1762787988554,0.23399307,105140.0,105130.0,0.07875283]
[1762787988961,0.23399307,105140.0,105130.0,0.17389663]
[1762787989161,0.11503623,105140.0,105130.0,0.17389663]
[1762787989358,0.21629307,105140.0,105130.0,0.17389663]
[1762787989663,0.21629307,105140.0,105130.0,0.23463353]
[1762787989963,0.21829307,105140.0,105130.0,0.23463353]
[1762787990263,0.00419803,105140.0,105130.0,0.23463353]
[1762787990460,0.15855487,105140.0,105130.0,0.1054369]
[1762787990758,0.23398967,105140.0,105130.0,0.2005807]
[1762787991164,0.23398967,105140.0,105130.0,0.23460202]
[1762787991361,0.00319803,105140.0,105130.0,0.23460202]
[1762787991560,0.2142261,105150.0,105140.0,0.05785]
[1762787991763,0.25182413,105150.0,105140.0,0.09186534]
[1762787992758,0.25382413,105150.0,105140.0,0.09186534]
[1762787992958,0.25482413,105150.0,105140.0,0.09186534]
[1762787993264,0.00534049,105150.0,105140.0,0.20406404]
[1762787993454,0.00534049,105150.0,105140.0,0.14290727]
[1762787993455,0.21942303,105150.0,105140.0,0.14290727]
[1762787993764,0.25482303,105150.0,105140.0,0.09182803]
[1762787994154,0.25482303,105150.0,105140.0,0.18696283]
[1762787994763,0.25482303,105150.0,105140.0,0.09182803]
[1762787994967,0.31014384,105150.0,105140.0,0.18696283]
[1762787995167,0.21501814,105150.0,105140.0,0.18696283]
[1762787995367,0.02304049,105150.0,105140.0,0.18696283]
[1762787995661,0.00534049,105150.0,105140.0,0.18696283]
[1762787996964,0.00314246,105150.0,105140.0,0.18696283]
[1762787997153,0.00534049,105150.0,105140.0,0.18696283]
[1762787997358,0.10046619,105150.0,105140.0,0.18696283]
[1762787997562,0.27474384,105150.0,105140.0,0.18696283]
[1762787997766,0.10046619,105150.0,105140.0,0.18696283]
[1762787998069,0.00534049,105150.0,105140.0,0.18696283]
[1762787998373,0.11816619,105150.0,105140.0,0.18696283]
[1762787998562,0.31014384,105150.0,105140.0,0.05785]
[1762787999262,0.1305348,105140.0,105130.0,0.05321766]
[1762787999462,0.1305348,105140.0,105130.0,0.04356]
[1762787999463,0.30701048,105140.0,105130.0,0.04356]
[1762787999768,0.1305438,105130.0,105120.0,0.09127049]
[1762787999970,0.30701948,105130.0,105120.0,0.09127049]
[1762788000466,0.30701948,105130.0,105120.0,0.05729246]
[1762788000963,0.17647568,105130.0,105120.0,0.15244536]
[1762788001163,0.09726816,105150.0,105120.0,0.15244536]
[1762788001164,0.30694901,105150.0,105140.0,0.1523648]
[1762788001366,0.00214246,105150.0,105140.0,0.1523648]
[1762788001559,0.26938525,105170.0,105160.0,0.05723]
[1762788001759,0.1305257,105150.0,105140.0,0.09120803]
[1762788001971,0.0354,105140.0,105130.0,0.22375787]
[1762788002173,0.00319803,105140.0,105130.0,0.17267863]
[1762788002371,0.001,105140.0,105130.0,0.41047863]
[1762788002574,0.00319803,105140.0,105130.0,0.22375787]
[1762788002870,0.30801048,105140.0,105130.0,0.07753803]
[1762788003070,0.30801048,105140.0,105130.0,0.17268183]
[1762788003267,0.30801048,105140.0,105130.0,0.07753803]
[1762788003467,0.30801048,105140.0,105130.0,0.04356]
[1762788004063,0.30801048,105140.0,105130.0,0.02187]
[1762788004264,0.1305438,105130.0,105120.0,0.09127049]
[1762788004461,0.30701948,105130.0,105120.0,0.09127049]
[1762788004768,0.30701948,105130.0,105120.0,0.06551829]
[1762788005170,0.30701948,105130.0,105120.0,0.00836829]
[1762788005476,0.13274183,105130.0,105120.0,0.06559829]
[1762788005672,0.17647568,105130.0,105120.0,0.16075119]
[1762788005883,0.00219803,105130.0,105120.0,0.1703831]
[1762788006077,0.30494971,105150.0,105140.0,0.05723]
[1762788006272,0.30714384,105150.0,105140.0,0.05723]
[1762788006473,0.30714384,105150.0,105140.0,0.1523648]
[1762788006474,0.00234049,105150.0,105140.0,0.1523648]
[1762788006675,0.00234049,105150.0,105140.0,0.18633021]
[1762788006975,0.00014246,105150.0,105140.0,0.44120404]
[1762788007574,0.00014246,105150.0,105140.0,0.20344404]
[1762788007774,0.00114246,105150.0,105140.0,0.20344404]
[1762788008077,0.30814384,105150.0,105140.0,0.20344394]
[1762788008769,0.30914384,105150.0,105140.0,0.10830924]
[1762788008964,0.30914384,105150.0,105140.0,0.20344394]
[1762788008965,0.13486619,105150.0,105140.0,0.20344394]
[1762788009170,0.00434049,105150.0,105140.0,0.20344394]
[1762788009478,0.09946619,105150.0,105140.0,0.20344394]
[1762788009672,0.00214246,105150.0,105140.0,0.20344394]
[1762788009878,0.00434049,105150.0,105140.0,0.20344394]
[1762788010077,0.27374384,105150.0,105140.0,0.2034015]
[1762788010273,0.09946619,105150.0,105140.0,0.1523647]
[1762788010475,0.30914384,105150.0,105140.0,0.05723]
[1762788010778,0.30914384,105150.0,105140.0,0.20343547]
[1762788010970,0.00434049,105150.0,105140.0,0.20343547]
[1762788011170,0.09846619,105150.0,105140.0,0.10830077]
[1762788011371,0.09846619,105150.0,105140.0,0.1265143]
[1762788011682,0.00334049,105150.0,105140.0,0.221649]
[1762788011873,0.00334049,105150.0,105140.0,0.1533647]
[1762788012280,0.00334049,105150.0,105140.0,0.221649]
[1762788012481,0.09846619,105150.0,105140.0,0.221649]
[1762788012679,0.00334049,105150.0,105140.0,0.221649]
[1762788013177,0.00114246,105150.0,105140.0,0.221649]
[1762788013401,0.1304986,105180.0,105170.0,0.1386676]
[1762788013581,0.00219803,105180.0,105170.0,0.1898132]
[1762788013881,0.0950928,105190.0,105180.0,0.05723]
[1762788014079,0.00219803,105190.0,105180.0,0.1523286]
[1762788014782,0.30696518,105190.0,105180.0,0.05723]
[1762788015085,0.13368753,105190.0,105180.0,0.10834168]
[1762788015281,0.30796518,105190.0,105180.0,0.10834168]
[1762788015486,0.30796518,105190.0,105180.0,0.05111168]
[1762788015785,0.30796518,105190.0,105180.0,0.05593956]
[1762788016483,0.09828753,105190.0,105180.0,0.18639816]
[1762788016681,0.09828753,105190.0,105180.0,0.23750984]
[1762788016882,0.09828753,105190.0,105180.0,0.20344028]
[1762788017079,0.002,105190.0,105180.0,0.1523286]
[1762788017387,0.00419803,105190.0,105180.0,0.1523286]
[1762788017890,0.002,105190.0,105180.0,0.1523286]
[1762788018985,0.002,105190.0,105180.0,0.45820274]
[1762788019774,0.002,105190.0,105180.0,0.3900086]
[1762788020478,9.496e-05,105200.0,105190.0,0.1391695]
[1762788020683,9.496e-05,105200.0,105190.0,0.19018223]
[1762788020894,0.09517546,105200.0,105190.0,0.19018223]
[1762788021587,9.496e-05,105200.0,105190.0,0.19018223]
[1762788021782,0.00509496,105200.0,105190.0,0.19018223]
[1762788022386,0.00509496,105200.0,105190.0,0.42782223]